bitfinex/quotes_SOLUSD_20240818
["timestamp","ask_amount","ask_price","bid_price","bid_amount"]
[1723949439324,10.0,142.68,142.61,33.07]
[1723949439907,10.0,142.68,142.62,45.37647]
[1723949440105,10.0,142.68,142.62,45.0]
[1723949440314,10.0,142.68,142.56,15.98949]
[1723949440517,10.0,142.68,142.57,65.25098]
[1723949440726,10.0,142.68,142.57,45.25098]
[1723949441717,10.0,142.68,142.58,33.07]
[1723949443106,10.0,142.68,142.6,33.07]
[1723949448129,10.0,142.68,142.62,33.07]
[1723949449840,10.0,142.68,142.64,33.07]
[1723949450054,10.0,142.68,142.61,0.37647]
[1723949450055,10.0,142.68,142.67,0.12549]
[1723949450211,10.0,142.68,142.67,45.37647]
[1723949450545,10.0,142.68,142.66,33.07]
[1723949452828,10.0,142.68,142.67,45.37647]
[1723949453139,29.5123592,142.75,142.67,45.37647]
[1723949453140,29.5123592,142.75,142.68,20.0]
[1723949453443,29.5123592,142.75,142.67,75.37647]
[1723949453444,39.25015645,142.8,142.75,0.12549]
[1723949453622,39.25015645,142.8,142.74,33.07]
[1723949453812,39.25015645,142.8,142.74,34.47045909]
[1723949454190,39.25015645,142.8,142.75,0.12549]
[1723949454311,39.25015645,142.8,142.74,78.07]
[1723949454511,39.25015645,142.8,142.75,45.37647]
[1723949455740,39.25015645,142.8,142.74,33.07]
[1723949455913,39.25015645,142.8,142.74,0.12549]
[1723949456112,39.25015645,142.8,142.74,45.37647]
[1723949456614,39.25015645,142.8,142.76,33.07]
[1723949457115,39.25015645,142.8,142.74,78.44647]
[1723949459221,39.25015645,142.8,142.74,45.37647]
[1723949459420,39.25015645,142.8,142.74,45.0]
[1723949459731,39.25015645,142.8,142.73,33.19549]
[1723949459919,39.25015645,142.8,142.74,45.0]
[1723949460125,16.249,142.79,142.68,1.40055422]
[1723949460323,16.249,142.79,142.65,1.4008827]
[1723949460537,4.9026,142.78,142.67,33.07]
[1723949460948,16.249,142.79,142.67,33.07]
[1723949461161,21.1513,142.79,142.67,33.07]
[1723949461446,21.1513,142.79,142.68,1.40102517]
[1723949461675,21.1513,142.79,142.68,1.40101689]
[1723949461856,16.249,142.79,142.71,33.07]
[1723949462160,6.2157,142.79,142.71,33.07]
[1723949462733,6.2157,142.79,142.69,33.07]
[1723949463937,6.2157,142.79,142.7,45.25098]
[1723949464630,6.2157,142.79,142.71,34.4708225]
[1723949464831,6.2157,142.79,142.71,54.4708225]
[1723949465030,6.2157,142.79,142.72,0.12549]
[1723949465255,39.25015645,142.8,142.75,33.07]
[1723949465428,39.25015645,142.8,142.79,33.07]
[1723949465632,0.8387703,142.84,142.8,0.12549]
[1723949465847,0.8387703,142.84,142.82,33.07]
[1723949466045,0.8387703,142.84,142.83,1.77634088]
[1723949466235,0.8387703,142.84,142.83,45.37647]
[1723949466440,0.8387703,142.84,142.83,45.50196]
[1723949466655,0.8387703,142.84,142.83,65.50196]
[1723949466865,0.8387703,142.84,142.83,45.37647]
[1723949467343,6.2157,142.93,142.83,20.0]
[1723949467556,68.46354819,142.95,142.89,33.07]
[1723949467744,68.46354819,142.95,142.89,78.07]
[1723949467939,68.46354819,142.95,142.89,33.07]
[1723949468346,33.85575094,142.9,142.89,114.16736]
[1723949468661,68.46354819,142.95,142.9,0.12549]
[1723949468840,68.46354819,142.95,142.91,33.07]
[1723949469038,68.46354819,142.95,142.92,45.0]
[1723949469349,68.46354819,142.95,142.9,0.12549]
[1723949469545,68.46354819,142.95,142.9,65.0]
[1723949469741,68.46354819,142.95,142.89,20.12549]
[1723949470043,68.46354819,142.95,142.85,48.6654]
[1723949470242,6.2201,142.94,142.83,33.07]
[1723949470448,6.2201,142.94,142.81,48.6654]
[1723949470758,6.2201,142.94,142.83,33.07]
[1723949471266,6.2201,142.94,142.81,16.99344563]
[1723949471267,33.07,142.93,142.81,15.5954]
[1723949471477,4.8979,142.92,142.8,33.07]
[1723949471639,4.8979,142.92,142.77,259.8]
[1723949471640,4.8979,142.92,142.78,33.07]
[1723949471839,4.8979,142.92,142.8,33.07]
[1723949472063,33.07,142.93,142.8,33.07]
[1723949472268,37.9682,142.91,142.78,33.07]
[1723949472644,4.8977,142.93,142.8,33.07]
[1723949472962,39.2901,142.94,142.82,33.07]
[1723949472963,6.2201,142.94,142.82,33.07]
[1723949473542,6.2201,142.94,142.86,33.07]
[1723949473954,6.2201,142.94,142.87,45.37647]
[1723949474474,68.46354819,142.95,142.88,33.07]
[1723949474762,68.46354819,142.95,142.94,33.19549]
[1723949474948,68.46354819,142.95,142.94,33.57196]
[1723949475147,68.46354819,142.95,142.94,78.57196]
[1723949475367,68.46354819,142.95,142.94,98.57196]
[1723949476265,0.8387703,142.98,142.97,0.12549]
[1723949476469,61.56474543,143.0,142.97,98.57196]
[1723949476717,61.56474543,143.0,142.99,0.12549]
[1723949477259,61.56474543,143.0,142.98,0.37647]
[1723949477572,61.56474543,143.0,142.98,0.12549]
[1723949477746,61.56474543,143.0,142.97,65.0]
[1723949478375,61.56474543,143.0,142.97,20.0]
[1723949478573,61.56474543,143.0,142.91,45.8629]
[1723949478747,61.56474543,143.0,142.88,20.0]
[1723949478949,61.56474543,143.0,142.87,40.89873379]
[1723949479151,61.56474543,143.0,142.89,20.0]
[1723949479450,61.56474543,143.0,142.87,40.89873379]
[1723949479451,61.56474543,143.0,142.9,1.39856477]
[1723949479780,61.56474543,143.0,142.91,39.5]
[1723949480262,61.56474543,143.0,142.88,39.5]
[1723949481780,66.45984543,143.0,142.88,39.5]
[1723949481981,66.45984543,143.0,142.85,39.5]
[1723949481982,61.56474543,143.0,142.85,39.5]
[1723949482287,61.56474543,143.0,142.86,1.39921453]
[1723949482790,4.8958,142.98,142.85,39.5]
[1723949483079,61.56474543,143.0,142.86,1.39921462]
[1723949483272,39.56,142.98,142.81,1.39903143]
[1723949483472,4.8964,142.97,142.83,39.56]
[1723949483785,61.56474543,143.0,142.84,1.22956731]
[1723949483954,4.8958,142.98,142.85,1.39923586]
[1723949484281,4.8958,142.98,142.83,40.95913914]
[1723949484658,5.02099,142.99,142.83,40.95913914]
[1723949485003,61.56474543,143.0,142.89,39.56]
[1723949485161,61.56474543,143.0,142.9,1.39885015]
[1723949485362,61.56474543,143.0,142.89,39.56]
[1723949485773,61.56474543,143.0,142.92,39.56]
[1723949485985,61.56474543,143.0,142.93,45.25098]
[1723949486561,61.56474543,143.0,142.94,0.12549]
[1723949486882,61.56474543,143.0,142.95,39.56]
[1723949487080,61.56474543,143.0,142.96,45.25098]
[1723949487283,61.56474543,143.0,142.94,20.12549]
[1723949487466,61.56474543,143.0,142.95,0.12549]
[1723949488182,61.56474543,143.0,142.92,10.12549]
[1723949488359,61.56474543,143.0,142.93,45.12549]
[1723949490571,61.56474543,143.0,142.93,45.0]
[1723949490872,61.56474543,143.0,142.94,39.93647]
[1723949491063,61.56474543,143.0,142.96,0.12549]
[1723949491259,61.56474543,143.0,142.96,0.50196]
[1723949492672,61.56474543,143.0,142.98,0.12549]
[1723949492866,61.56474543,143.0,142.98,45.50196]
[1723949495175,61.56474543,143.0,142.99,20.0]
[1723949495383,61.56474543,143.0,142.99,65.50196]
[1723949495791,61.56474543,143.0,142.99,45.50196]
[1723949496095,61.56474543,143.0,142.99,20.50196]
[1723949496298,61.56474543,143.0,142.99,65.50196]
[1723949496672,61.56474543,143.0,142.99,45.50196]
[1723949496873,61.56474543,143.0,142.99,0.50196]
[1723949497889,61.56474543,143.0,142.99,0.37647]
[1723949498976,61.56474543,143.0,142.99,0.50196]
[1723949499382,61.56474543,143.0,142.99,0.37647]
[1723949500778,61.56474543,143.0,142.96,39.49]
[1723949500975,61.56474543,143.0,142.93,39.49]
[1723949501876,61.56474543,143.0,142.92,39.5506]
[1723949502394,61.56474543,143.0,142.92,32.93]
[1723949502992,61.56474543,143.0,142.93,20.0]
[1723949503403,61.56474543,143.0,142.93,21.39859923]
[1723949503585,61.56474543,143.0,142.94,33.05549]
[1723949503785,61.56474543,143.0,142.96,0.12549]
[1723949505187,61.56474543,143.0,142.88,21.6604]
[1723949505392,61.56474543,143.0,142.9,32.93]
[1723949506082,66.45984543,143.0,142.9,32.93]
[1723949506386,66.45984543,143.0,142.88,39.5506]
[1723949506585,66.45984543,143.0,142.88,32.93]
[1723949507384,66.45984543,143.0,142.89,20.0]
[1723949507712,66.45984543,143.0,142.88,32.93]
[1723949507713,4.8955,142.99,142.9,0.12549]
[1723949507912,4.8961,142.97,142.86,39.54]
[1723949508087,4.8957,142.99,142.86,39.54]
[1723949508283,61.56474543,143.0,142.86,39.54]
[1723949508481,4.8961,142.98,142.86,39.54]
[1723949508682,22.347,142.97,142.83,390.3]
[1723949508902,22.347,142.97,142.84,1.39950442]
[1723949508903,4.8968,142.95,142.84,1.39950442]
[1723949509101,4.8964,142.96,142.83,390.3]
[1723949509283,4.8968,142.95,142.83,390.3]
[1723949509608,39.54,142.95,142.83,390.3]
[1723949510922,4.8978,142.92,142.83,390.3]
[1723949511212,0.12549,142.93,142.79,39.54]
[1723949511386,39.54,142.92,142.79,39.54]
[1723949511590,4.8989,142.89,142.79,39.54]
[1723949511808,15.8254,142.88,142.79,39.54]
[1723949512694,15.8254,142.88,142.8,0.12549]
[1723949512887,15.8254,142.92,142.8,0.12549]
[1723949513212,15.8254,142.92,142.82,39.54]
[1723949514100,15.8254,142.92,142.81,0.12549]
[1723949514405,15.8254,142.92,142.82,0.12549]
[1723949516998,20.7232,142.92,142.82,0.12549]
[1723949517207,15.8254,142.92,142.82,0.12549]
[1723949517998,15.8254,142.92,142.82,39.66549]
[1723949518221,15.8254,142.92,142.83,46.52497746]
[1723949518385,15.8254,142.92,142.83,45.12549]
[1723949518715,15.8254,142.92,142.84,0.25098]
[1723949518924,15.8254,142.92,142.85,0.25098]
[1723949519233,15.8254,142.92,142.86,0.12549]
[1723949519519,6.5216,142.94,142.86,0.12549]
[1723949521598,6.5216,142.94,142.86,1.52481349]
[1723949521809,6.5216,142.94,142.88,0.12549]
[1723949522010,15.8254,142.96,142.88,0.12549]
[1723949522317,15.8254,142.96,142.88,61.06453898]
[1723949522523,15.8254,142.96,142.89,45.12549]
[1723949523018,6.5216,142.98,142.9,1.52445929]
[1723949523200,6.5216,142.98,142.91,0.12549]
[1723949523794,6.5216,142.98,142.9,0.12549]
[1723949523795,6.5216,142.98,142.9,0.25098]
[1723949524815,6.5216,142.98,142.89,45.0]
[1723949525123,11.4177,142.98,142.85,39.54]
[1723949525290,11.4177,142.98,142.86,20.0]
[1723949525699,46.0616,142.98,142.85,39.54]
[1723949525907,15.8254,142.94,142.84,390.3]
[1723949526819,6.5216,142.92,142.84,390.3]
[1723949527400,11.4194,142.92,142.84,390.3]
[1723949527808,4.8983,142.91,142.79,39.54]
[1723949529264,46.18709,142.92,142.79,39.54]
[1723949529431,4.8988,142.9,142.79,39.54]
[1723949530007,4.8989,142.89,142.76,259.8]
[1723949530234,21.4457,142.87,142.76,259.8]
[1723949530524,6.1172,142.86,142.76,259.8]
[1723949531121,11.0171,142.86,142.75,423.3]
[1723949531431,39.1172,142.86,142.73,33.0]
[1723949531611,4.9006,142.84,142.73,33.0]
[1723949531932,6.1172,142.86,142.77,33.0]
[1723949532134,6.1172,142.86,142.75,33.0]
[1723949532331,11.0174,142.86,142.75,33.0]
[1723949532629,4.9002,142.85,142.75,33.0]
[1723949532833,6.1172,142.86,142.76,0.12549]
[1723949533033,6.1172,142.86,142.76,45.12549]
[1723949533242,11.0172,142.86,142.75,33.0]
[1723949534020,4.9003,142.85,142.73,33.0]
[1723949534620,4.9003,142.85,142.74,45.12549]
[1723949535318,6.1172,142.86,142.77,33.0]
[1723949535515,6.1172,142.86,142.78,45.25098]
[1723949536221,6.1172,142.86,142.78,0.12549]
[1723949536819,6.1172,142.86,142.77,33.0]
[1723949537338,6.1172,142.86,142.76,0.12549]
[1723949537516,6.1172,142.86,142.77,0.12549]
[1723949537931,6.1172,142.86,142.77,33.12549]
[1723949538140,6.1172,142.86,142.78,0.12549]
[1723949540546,6.1172,142.86,142.77,0.12549]
[1723949540732,6.1172,142.86,142.77,0.25098]
[1723949541125,6.1172,142.86,142.76,65.12549]
[1723949541126,6.1172,142.86,142.76,20.0]
[1723949541327,6.1172,142.86,142.73,33.0]
[1723949541641,6.1172,142.86,142.75,33.0]
[1723949541825,6.1172,142.86,142.76,1.39996528]
[1723949542151,6.1172,142.86,142.75,33.0]
[1723949542444,11.0171,142.86,142.76,45.25098]
[1723949542847,11.0171,142.86,142.75,33.0]
[1723949543048,11.0171,142.86,142.75,0.12549]
[1723949543344,11.0171,142.86,142.75,0.25098]
[1723949543548,44.0171,142.86,142.75,45.25098]
[1723949544461,4.9003,142.85,142.75,0.12549]
[1723949544748,44.0171,142.86,142.75,46.77706381]
[1723949545247,44.0171,142.86,142.75,45.37647]
[1723949546045,39.1172,142.86,142.75,45.12549]
[1723949546238,4.9005,142.84,142.74,20.0]
[1723949547044,4.901,142.83,142.73,0.37647]
[1723949547831,37.9006,142.84,142.73,0.25098]
[1723949548359,37.9006,142.84,142.72,65.0]
[1723949548360,4.9012,142.82,142.72,20.0]
[1723949548726,37.9012,142.82,142.72,20.0]
[1723949548926,37.9012,142.82,142.7,20.0]
[1723949549350,4.9016,142.81,142.7,410.3]
[1723949549850,37.9013,142.82,142.7,410.3]
[1723949550247,33.0,142.82,142.7,410.3]
[1723949550450,4.9016,142.81,142.7,410.3]
[1723949551242,6.415,142.79,142.7,410.3]
[1723949551554,6.415,142.79,142.73,33.0]
[1723949551939,6.415,142.79,142.71,33.0]
[1723949552752,6.415,142.79,142.72,45.25098]
[1723949553161,6.415,142.79,142.73,0.25098]
[1723949553368,6.415,142.79,142.74,0.25098]
[1723949553664,6.415,142.79,142.72,45.0]
[1723949556352,6.415,142.79,142.73,0.37647]
[1723949556564,6.415,142.79,142.73,53.50196]
[1723949556749,6.415,142.79,142.74,45.0]
[1723949557057,6.415,142.79,142.75,0.12549]
[1723949557627,6.415,142.79,142.74,45.0]
[1723949557859,6.415,142.79,142.7,390.3]
[1723949558153,6.415,142.79,142.71,20.0]
[1723949558665,6.415,142.79,142.71,21.40088075]
[1723949558959,6.415,142.79,142.72,33.0]
[1723949559279,6.415,142.79,142.73,20.0]
[1723949559660,6.415,142.79,142.74,0.12549]
[1723949559867,6.415,142.79,142.74,0.25098]
[1723949560159,6.415,142.79,142.74,45.25098]
[1723949561863,6.415,142.79,142.73,20.0]
[1723949562164,6.415,142.79,142.71,20.0]
[1723949563737,6.415,142.79,142.72,0.12549]
[1723949563940,6.415,142.79,142.72,45.87757169]
[1723949564243,6.415,142.79,142.72,45.25098]
[1723949566461,39.415,142.79,142.7,390.3]
[1723949566644,16.4514,142.78,142.7,390.3]
[1723949567168,21.354,142.78,142.65,33.0]
[1723949567872,16.4514,142.78,142.67,33.0]
[1723949568251,16.4514,142.78,142.68,20.0]
[1723949568572,16.4514,142.78,142.69,0.12549]
[1723949568755,16.4514,142.78,142.69,0.50196]
[1723949569077,16.4514,142.78,142.69,45.50196]
[1723949569761,16.4514,142.78,142.7,1.40106839]
[1723949570272,16.4514,142.78,142.71,33.50196]
[1723949570479,16.4514,142.78,142.72,45.0]
[1723949570647,16.4514,142.78,142.71,0.37647]
[1723949570842,16.4514,142.78,142.71,0.12549]
[1723949571076,16.4514,142.78,142.71,45.25098]
[1723949571570,16.4514,142.78,142.71,45.12549]
[1723949571778,16.4514,142.78,142.65,33.0]
[1723949571959,16.4514,142.78,142.66,50.0]
[1723949572353,16.4514,142.78,142.66,20.0]
[1723949572948,33.0,142.77,142.66,20.0]
[1723949573351,33.0,142.77,142.65,53.12549]
[1723949573547,33.0,142.77,142.66,0.12549]
[1723949574143,33.0,142.77,142.65,20.0]
[1723949574364,33.0,142.77,142.64,20.0]
[1723949575469,33.0,142.77,142.65,45.37647]
[1723949575650,33.0,142.77,142.66,20.12549]
[1723949575847,33.0,142.77,142.65,45.25098]
[1723949576052,33.0,142.75,142.63,33.8387703]
[1723949576359,6.3426,142.74,142.63,33.8387703]
[1723949577174,6.3426,142.74,142.64,20.0]
[1723949577357,6.3426,142.74,142.65,0.12549]
[1723949577555,6.3426,142.74,142.65,0.25098]
[1723949577752,6.3426,142.74,142.65,0.12549]
[1723949578172,6.3426,142.74,142.64,65.12549]
[1723949578389,6.3426,142.74,142.64,20.12549]
[1723949579982,53.6482,142.73,142.63,0.8387703]
[1723949581185,33.0,142.71,142.63,0.8387703]
[1723949581353,6.3426,142.7,142.63,0.8387703]
[1723949583659,33.0,142.67,142.63,0.8387703]
[1723949583858,26.48,142.67,142.63,0.8387703]
[1723949584258,31.3864,142.67,142.63,0.8387703]
[1723949584467,42.85,142.65,142.54,259.8]
[1723949584759,42.85,142.65,142.53,48.2812]
[1723949585358,42.85,142.65,142.53,26.48]
[1723949585784,42.85,142.65,142.54,20.0]
[1723949585969,16.37,142.65,142.54,53.11]
[1723949586779,15.7438,142.63,142.49,8.17649054]
[1723949586962,33.11,142.65,142.49,8.17649054]
[1723949586963,22.0864,142.59,142.49,8.17649054]
[1723949587159,22.0864,142.59,142.49,0.8387703]
[1723949587356,33.36098,142.58,142.49,0.8387703]
[1723949588071,4.9099,142.57,142.49,0.8387703]
[1723949588272,38.0195,142.58,142.49,0.8387703]
[1723949589487,33.11,142.58,142.49,0.8387703]
[1723949589993,22.0864,142.59,142.49,0.8387703]
[1723949590288,26.9955,142.59,142.49,0.8387703]
[1723949590987,22.0864,142.59,142.49,0.8387703]
[1723949591568,0.12549,142.58,142.49,0.8387703]
[1723949591771,0.50196,142.58,142.49,0.8387703]
[1723949592088,5.41146,142.58,142.49,0.8387703]
[1723949592267,4.9098,142.57,142.49,0.8387703]
[1723949592466,0.50196,142.58,142.49,0.8387703]
[1723949592677,4.9099,142.57,142.49,0.8387703]
[1723949592881,33.36098,142.56,142.49,0.8387703]
[1723949593258,6.3564,142.55,142.49,0.8387703]
[1723949596388,15.7438,142.59,142.5,0.50196]
[1723949596389,22.1002,142.59,142.5,0.50196]
[1723949596589,22.1002,142.59,142.5,65.25098]
[1723949597387,22.1002,142.59,142.5,65.12549]
[1723949597585,22.1002,142.59,142.5,20.0]
[1723949598190,22.1002,142.59,142.49,0.8387703]
[1723949600470,22.1002,142.59,142.5,0.25098]
[1723949600685,22.1002,142.59,142.5,33.36098]
[1723949601083,22.1002,142.59,142.5,0.12549]
[1723949601388,22.1002,142.59,142.49,65.8387703]
[1723949601598,22.1002,142.59,142.5,0.12549]
[1723949602396,22.1002,142.59,142.49,0.8387703]
[1723949602694,0.12549,142.58,142.49,0.8387703]
[1723949602877,0.25098,142.58,142.49,0.8387703]
[1723949603288,0.12549,142.58,142.49,0.8387703]
[1723949603488,0.25098,142.58,142.49,0.8387703]
[1723949604492,0.12549,142.57,142.49,0.8387703]
[1723949605474,22.1002,142.59,142.49,0.8387703]
[1723949605694,0.12549,142.58,142.49,0.8387703]
[1723949605898,0.12549,142.58,142.49,20.8387703]
[1723949606404,22.1002,142.59,142.5,33.36098]
[1723949607184,22.1002,142.59,142.51,20.0]
[1723949608889,22.1002,142.59,142.52,33.48647]
[1723949609205,40.44946885,142.66,142.54,0.12549]
[1723949609206,22.6874,142.65,142.54,0.12549]
[1723949609500,22.6874,142.65,142.54,33.36098]
[1723949609697,22.6874,142.65,142.56,33.23549]
[1723949610216,22.6874,142.65,142.57,65.12549]
[1723949610502,22.6874,142.65,142.58,33.23549]
[1723949610684,22.6874,142.65,142.59,0.12549]
[1723949611703,22.6874,142.65,142.59,65.25098]
[1723949613104,22.6874,142.69,142.6,33.23549]
[1723949613398,22.6874,142.69,142.61,65.25098]
[1723949614705,22.6874,142.69,142.62,0.12549]
[1723949615012,22.6874,142.72,142.62,33.36098]
[1723949615179,22.6874,142.72,142.63,21.52736824]
[1723949615381,22.6874,142.72,142.63,20.12549]
[1723949615796,22.6874,142.72,142.63,0.12549]
[1723949617703,22.6874,142.72,142.63,45.12549]
[1723949619362,0.12549,142.71,142.62,20.0]
[1723949619485,0.37647,142.71,142.61,20.12549]
[1723949619686,0.37647,142.71,142.62,20.0]
[1723949619903,0.37647,142.71,142.61,0.12549]
[1723949620387,0.37647,142.71,142.61,20.12549]
[1723949621607,0.12549,142.69,142.56,33.11]
[1723949621806,45.37647,142.69,142.58,45.25098]
[1723949622001,0.12549,142.71,142.61,26.48]
[1723949622200,20.37647,142.71,142.61,26.48]
[1723949622910,22.6874,142.72,142.62,0.25098]
[1723949623117,22.6874,142.72,142.62,65.25098]
[1723949623421,22.6874,142.72,142.63,26.48]
[1723949623617,22.6874,142.72,142.64,0.12549]
[1723949623924,15.9523,142.75,142.64,78.43647]
[1723949624095,15.9523,142.75,142.65,0.12549]
[1723949624293,15.9523,142.75,142.65,20.25098]
[1723949625813,15.9523,142.75,142.65,20.12549]
[1723949629725,0.37647,142.74,142.65,20.0]
[1723949630221,15.9523,142.75,142.65,20.0]
[1723949635522,6.81857,142.76,142.65,20.0]
[1723949635701,6.81857,142.76,142.66,78.31098]
[1723949635907,4.9026,142.78,142.67,0.12549]
[1723949636125,24.9026,142.78,142.68,0.12549]
[1723949636301,24.9026,142.78,142.68,0.25098]
[1723949638343,5.15388,142.77,142.66,45.0]
[1723949638523,20.0,142.76,142.67,0.12549]
[1723949640245,24.9033,142.76,142.66,45.0]
[1723949640741,20.0,142.76,142.66,45.0]
[1723949640945,0.12549,142.76,142.66,45.0]
[1723949641921,25.15388,142.77,142.67,0.12549]
[1723949642130,25.15388,142.77,142.67,0.37647]
[1723949643642,25.15388,142.77,142.67,0.25098]
[1723949643825,5.02879,142.76,142.65,20.0]
[1723949644030,0.37647,142.75,142.65,46.45]
[1723949644261,0.25098,142.75,142.65,46.45]
[1723949646245,0.25098,142.74,142.65,20.0]
[1723949646435,31.60538,142.73,142.64,6.0451]
[1723949648445,26.70098,142.73,142.64,6.0451]
[1723949648637,20.0,142.77,142.65,71.70098]
[1723949648638,31.353,142.77,142.65,71.70098]
[1723949648954,31.353,142.77,142.66,0.12549]
[1723949649331,31.353,142.77,142.67,26.45]
[1723949649832,4.903,142.77,142.67,26.45]
[1723949650025,4.9026,142.78,142.68,0.12549]
[1723949650224,20.0,142.78,142.68,45.25098]
[1723949650427,16.4081,142.79,142.7,16.3377]
[1723949650749,42.8581,142.79,142.7,16.3377]
[1723949651045,31.3537,142.75,142.66,16.3377]
[1723949651841,26.45,142.75,142.66,16.3377]
[1723949652039,5.15428,142.76,142.66,16.3377]
[1723949652235,0.12549,142.75,142.66,16.3377]
[1723949654040,0.25098,142.76,142.66,16.3377]
[1723949654240,20.25098,142.76,142.66,16.3377]
[1723949655535,20.12549,142.76,142.67,0.12549]
[1723949655732,20.12549,142.76,142.67,0.37647]
[1723949655733,20.0,142.76,142.67,0.37647]
[1723949655940,26.45,142.79,142.68,26.57549]
[1723949656149,20.0,142.78,142.7,6.4758]
[1723949656866,24.9027,142.78,142.7,6.4758]
[1723949657453,20.0,142.78,142.7,6.4758]
[1723949659937,24.9027,142.78,142.7,6.4758]
[1723949660866,0.25098,142.77,142.7,6.4758]
[1723949661336,0.12549,142.76,142.7,6.4758]
[1723949662440,20.12549,142.76,142.7,6.4758]
[1723949663067,20.12549,142.76,142.66,16.3377]
[1723949663270,26.70098,142.75,142.66,22.8135]
[1723949663436,31.60468,142.75,142.66,22.8135]
[1723949664865,4.904,142.74,142.66,22.8135]
[1723949665239,26.57549,142.77,142.67,0.25098]
[1723949665571,20.12549,142.76,142.67,45.25098]
[1723949665737,20.12549,142.76,142.66,22.8135]
[1723949665938,20.12549,142.76,142.67,45.25098]
[1723949670470,25.02889,142.76,142.67,45.25098]
[1723949670758,20.12549,142.76,142.67,45.25098]
[1723949671173,0.12549,142.75,142.66,22.8135]
[1723949671463,4.904,142.74,142.66,22.8135]
[1723949671661,24.904,142.74,142.66,22.8135]
[1723949672460,31.60538,142.73,142.66,22.8135]
[1723949673057,31.47989,142.73,142.66,22.8135]
[1723949673773,26.57549,142.73,142.66,22.8135]
[1723949674071,26.45,142.73,142.66,22.8135]
[1723949676783,0.25098,142.72,142.66,22.8135]
[1723949677166,0.12549,142.72,142.66,22.8135]
[1723949677367,4.9051,142.71,142.66,16.3377]
[1723949677553,24.9051,142.71,142.66,16.3377]
[1723949677970,24.9051,142.71,142.63,16.1887]
[1723949678278,51.3551,142.71,142.63,16.1887]
[1723949678459,50.40746,142.7,142.63,16.1887]
[1723949680980,0.12549,142.68,142.62,6.6253]
[1723949681166,26.45,142.67,142.59,16.1887]
[1723949681361,26.45,142.65,142.59,16.1887]
[1723949681666,26.45,142.65,142.58,6.6253]
[1723949681667,5.15838,142.64,142.58,6.6253]
[1723949681872,10.6,142.63,142.55,22.814]
[1723949682547,15.5067,142.67,142.58,10.6]
[1723949682752,20.0,142.66,142.58,10.6]
[1723949683453,10.6,142.67,142.58,10.6]
[1723949685461,10.6,142.68,142.59,0.12549]
[1723949685788,20.0,142.67,142.59,0.12549]
[1723949686583,20.0,142.67,142.61,16.1887]
[1723949687662,4.905,142.72,142.63,6.4385]
[1723949687881,15.40453997,142.73,142.63,6.4385]
[1723949687882,10.6,142.71,142.63,6.4385]
[1723949688191,15.5051,142.71,142.63,6.4385]
[1723949688481,10.6,142.69,142.63,6.4385]
[1723949689965,0.12549,142.7,142.63,6.4385]
[1723949690175,20.0,142.7,142.63,17.0385]
[1723949692998,20.0,142.7,142.63,6.4385]
[1723949696072,10.6,142.74,142.65,10.6]
[1723949696385,0.12549,142.73,142.65,10.6]
[1723949696588,10.6,142.74,142.65,10.6]
[1723949697084,10.6,142.74,142.66,16.3155]
[1723949697971,10.6,142.72,142.66,16.3155]